[Event "Romanian Team Blitz Open 2022"]
[Site "Sebes"]
[Date "2022.12.04"]
[Round "8.6"]
[White "Sfarlog, Tudor-Vlad"]
[Black "Cosma, Ioan"]
[Result "0-1"]
[ECO "A30"]
[WhiteElo "2283"]
[BlackElo "2368"]
[Annotator "TA"]
[PlyCount "94"]
[EventDate "2022.12.04"]
[EventType "blitz"]
[EventCountry "ROU"]
[SourceTitle "playchess.com"]
[Source "ChessBase"]
[SourceQuality "1"]
[TimeControl "180+2"]

{[%evp 22,94,49,50,42,42,43,50,59,19,20,13,30,-63,18,4,29,0,6,11,11,11,16,0,3,2,14,-20,18,18,27,27,27,0,34,64,64,10,18,27,65,54,122,113,177,167,198,35,31,48,541,546,597,590,687,674,631,612,740,549,555,0,0,0,0,0,0,-305,-306,-338,-169,-370,-359,-412,-414]} 1. Nf3 {[%emt 0:00:01]} Nf6 {[%emt 0:00:02]} 2. c4 {[%emt 0:00:01]} c5 {[%emt 0:00:01]} 3. Nc3 {[%emt 0:00:02]} e6 {[%emt 0:00:01]} 4. g3 {[%emt 0:00:03]} b6 {[%emt 0:00:01]} 5. Bg2 {[%emt 0:00:00]} Bb7 {[%emt 0:00:00]} 6. O-O {[%emt 0:00:02]} Be7 {[%emt 0:00:02]} 7. b3 {[%emt 0:00:05]} a6 {[%emt 0:00:05]} 8. Bb2 {[%emt 0:00:02]} O-O {[%emt 0:00:02]} 9. Re1 {[%emt 0:00:09]} d6 {[%emt 0:00:09]} 10. e4 {[%emt 0:00:01]} Qc7 {[%emt 0:00:06]} 11. d4 {[%emt 0:00:03]} cxd4 {[%emt 0:00:03]} 12. Nxd4 {[%emt 0:00:01]} Nc6 {[%emt 0:00:04] A30: Symmetrical English: Double Fianchetto and Hedgehog.} 13. Rc1 {[%emt 0:00:02][%cal Oc3d5] aiming for Nd5!} Nxd4 {[%emt 0:00:02]} 14. Qxd4 {[%emt 0:00:02]} Rab8 {[%emt 0:00:06] White is slightly better.} 15. a4 {[%emt 0:00:07]} Rfd8 {[%emt 0:00:05] [#]} 16. Ba3 $146 {[%emt 0:00:25]} ({Predecessor:} 16. h3 Bf8 17. Kh2 Qc5 18. Nd1 Nd7 19. Qd2 Qc7 20. f4 Bc6 21. f5 Qb7 22. fxe6 fxe6 {0-1 (59) Didriksson,M (2091)-Vilchez,V (2363) Sweden 2009}) 16... Bf8 {[%emt 0:00:01][%cal Od6d5]} 17. Qe3 {[%emt 0:00:08]} (17. Red1 $11) 17... Nd7 {[%emt 0:00:11]} ({Black should try} 17... d5 $1 $15 18. Bxf8 d4) 18. Red1 {[%emt 0:00:09][%cal Oc3d5]} Nc5 {[%emt 0:00:06]} 19. Ne2 {[%emt 0:00:04]} (19. b4 $5 {[%cal Rb4c5]}) 19... Bc6 {[%emt 0:00:12]} 20. Nd4 {[%emt 0:00:16]} Ba8 {[%emt 0:00:06]} 21. Bb2 {[%emt 0:00:03]} h6 {[%emt 0:00:04]} 22. h3 {[%emt 0:00:01]} Rbc8 {[%emt 0:00:04]} 23. Kh2 {[%emt 0:00:02]} Qb8 {[%emt 0:00:05]} 24. Rd2 {[%emt 0:00:36]} Bb7 {[%emt 0:00:02]} (24... e5 {is interesting.} 25. Nf5 Kh7 26. f4 g6) 25. Rcd1 {[%emt 0:00:13]} Qa8 {[%emt 0:00:04][%cal Rb7e4]} 26. f3 {[%emt 0:00:01]} Re8 {[%emt 0:00:02]} 27. Ne2 {[%emt 0:00:16]} b5 {[%emt 0:00:11]} 28. axb5 {[%emt 0:00:03]} axb5 {[%emt 0:00:01]} 29. cxb5 {[%emt 0:00:07]} (29. Ra1 $14 Qb8 30. cxb5) 29... Qa5 $11 {[%emt 0:00:07]} 30. Nd4 $36 {[%emt 0:00:05][%cal Ob3b4][%mdl 2048] [#] Threatens to win with b4! White is more active.} Qb6 {[%emt 0:00:12]} 31. b4 {[%emt 0:00:09]} Na4 {[%emt 0:00:02]} (31... Nd7 $1 $14) 32. Ba1 $16 {[%emt 0:00:01]} Qd8 {[%emt 0:00:12]} (32... Ra8 $16 {keeps fighting.}) 33. Bf1 $18 {[%emt 0:00:00]} Nb6 {[%emt 0:00:03]} 34. Rc2 $2 {[%emt 0:00:04] Against Nc4} (34. Nc6 $1 $18 {[%cal Rc6d8]} Bxc6 35. bxc6) 34... Rxc2+ $1 $14 35. Nxc2 {[%emt 0:00:00]} Qa8 $2 {[%emt 0:00:10][%mdl 8192]} 36. Qxb6 $18 {[%emt 0:00:04]} Qa2 {[%emt 0:00:05]} 37. Rd2 {[%emt 0:00:04]} Ba8 {[%emt 0:00:13]} 38. Qa6 {[%emt 0:00:01]} Qb1 {[%emt 0:00:08]} 39. Kg2 {[%emt 0:00:05]} d5 {[%emt 0:00:03]} 40. exd5 {[%emt 0:00:08]} Bxd5 {[%emt 0:00:02]} 41. Nd4 {[%emt 0:00:02]} (41. b6 $18) 41... Ra8 $11 {[%emt 0:00:05]} 42. Bc3 $1 {[%emt 0:00:17]} Rxa6 {[%emt 0:00:07]} 43. bxa6 {[%emt 0:00:01] And now a7 would win.} Qc1 {[%emt 0:00:23] Prevents a7.} (43... Bxb4 $2 44. Bd3 Bxc3 45. Bxb1 $18) 44. Ne2 {[%emt 0:00:05][%mdl 8192] [#]} (44. Nc2 $1 $11) 44... Qa3 $1 $19 {[%emt 0:00:03][%csl LRa6,LRb4]} 45. b5 {[%emt 0:00:05]} g5 {[%emt 0:00:08]} (45... Bc5 $142 {White must now prevent ...Bb6.} 46. g4 Bb6) 46. Kf2 $2 {[%emt 0:00:07]} (46. Kh2 {only move.}) 46... Bc5+ {[%emt 0:00:08]} 47. Kg2 {[%emt 0:00:01]} h5 {[%emt 0:00:03] Weighted Error Value: White=0.64/Black=0.43} 0-1

[Event "Romanian Team Blitz Open 2022"]
[Site "Sebes"]
[Date "2022.12.04"]
[Round "8.7"]
[White "Itkis, Boris"]
[Black "Ileana, George"]
[Result "0-1"]
[ECO "D58"]
[WhiteElo "2343"]
[BlackElo "2343"]
[Annotator "TA"]
[PlyCount "86"]
[EventDate "2022.12.04"]
[EventType "blitz"]
[EventCountry "ROU"]
[SourceTitle "playchess.com"]
[Source "ChessBase"]
[SourceQuality "1"]
[TimeControl "180+2"]

{[%evp 25,86,0,0,0,0,6,6,-10,13,0,18,-13,18,0,25,12,17,9,68,56,211,206,229,143,134,144,166,172,207,207,338,220,214,98,259,72,80,0,0,0,0,0,8,0,0,0,0,-44,-8,-20,-22,-67,-73,-75,-69,-133,-127,-114,0,0,18,-644,-670]} 1. Nf3 {[%emt 0:00:01]} Nf6 {[%emt 0:00:01]} 2. c4 {[%emt 0:00:01]} e6 {[%emt 0:00:02]} 3. Nc3 {[%emt 0:00:01]} d5 {[%emt 0:00:01]} 4. d4 {[%emt 0:00:02]} Be7 {[%emt 0:00:02]} 5. Bg5 {[%emt 0:00:03]} O-O {[%emt 0:00:04]} 6. e3 {[%emt 0:00:00]} h6 {[%emt 0:00:01]} 7. Bh4 {[%emt 0:00:01]} b6 {[%emt 0:00:06]} 8. Qb3 {[%emt 0:00:09]} Bb7 {[%emt 0:00:04]} 9. Bxf6 {[%emt 0:00:01]} Bxf6 {[%emt 0:00:02]} 10. cxd5 {[%emt 0:00:01]} exd5 {[%emt 0:00:03]} 11. Rd1 {[%emt 0:00:01]} c6 {[%emt 0:00:07]} 12. Be2 {[%emt 0:00:01]} Re8 {[%emt 0:00:02]} 13. O-O {[%emt 0:00:01]} Nd7 {[%emt 0:00:01]} 14. Rfe1 {[%emt 0:00:01] D58: Queen's Gambit Declined: Tartakower Defence.} g6 {[%emt 0:00:01]} 15. Bf1 {[%emt 0:00:01] [#]} Bg7 $146 {[%emt 0:00:02]} ({Predecessor:} 15... Nf8 16. g3 Ne6 17. Bg2 Rb8 18. h4 h5 19. a3 a5 20. e4 Ba8 21. exd5 cxd5 {1-0 (43) Hansen,C (2611)-Pedersen,S (2406) Denmark 2015}) 16. g3 {[%emt 0:00:00] The position is equal.} Nf6 {[%emt 0:00:10]} 17. Bg2 {[%emt 0:00:04]} Rc8 {[%emt 0:00:10]} 18. a3 {[%emt 0:00:06]} Qe7 {[%emt 0:00:12]} 19. Ne5 {[%emt 0:00:05][%cal Bf3e5,Be5d3,Bd3f4,Bf4g6][%mdl 32]} Nd7 {[%emt 0:00:04]} 20. Nd3 {[%emt 0:00:08]} Qd6 {[%emt 0:00:08]} 21. Nf4 {[%emt 0:00:07]} h5 {[%emt 0:00:10]} (21... g5 $11 22. Nh5 Bh8) 22. e4 $14 {[%emt 0:00:06][%cal Re4d5]} dxe4 {[%emt 0:00:05]} (22... Nf8 $14) 23. Nxe4 $18 {[%emt 0:00:01]} Qc7 {[%emt 0:00:14]} 24. Nxg6 {[%emt 0:00:04] [#] Black must now prevent Ng5.} (24. Bh3 $6 Rcd8) 24... c5 {[%emt 0:00:05]} 25. Nf4 {[%emt 0:00:15] Pair of Knights!} (25. Ng5 c4 26. Qc2 (26. Rxe8+ Rxe8 27. Qc2 fxg6 $16) 26... fxg6 $16) 25... cxd4 {[%emt 0:00:09][%cal Oe8e4]} 26. Nxh5 {[%emt 0:00:02]} (26. Ng5 Nc5 27. Rxe8+ (27. Qc2 Rxe1+ 28. Rxe1 d3 $11) 27... Rxe8 $16) 26... Bxe4 {[%emt 0:00:23]} 27. Bxe4 {[%emt 0:00:15]} Qc5 {[%emt 0:00:23]} (27... Nc5 {was called for.} 28. Qf3 Rxe4) 28. Nxg7 {[%emt 0:00:07]} (28. Bg6 Rxe1+ 29. Rxe1 Rf8 $16) 28... Kxg7 {[%emt 0:00:01]} 29. Qd5 {[%emt 0:00:18]} (29. Qf3 $18 Nf6 30. Bf5 Rxe1+ 31. Rxe1) 29... Nf6 {[%emt 0:00:08] [#]} (29... Ne5 $16) 30. Qxc5 $2 {[%emt 0:00:02]} (30. Qxd4 $18 {and the rest is easy. Hoping for Kg2.} Qxd4 31. Rxd4) 30... bxc5 $16 {[%emt 0:00:05]} 31. f3 {[%emt 0:00:09]} ({Better is} 31. Bf5 $16 Rc7 32. Rxe8 Nxe8 33. b3) 31... Rb8 $11 {[%emt 0:00:03]} 32. Rd2 {[%emt 0:00:07]} Nxe4 {[%emt 0:00:07]} 33. fxe4 {[%emt 0:00:06][%mdl 4096] Endgame KRR-KRR} Kf6 {[%emt 0:00:03]} 34. Kf2 {[%emt 0:00:06]} Ke5 {[%emt 0:00:04]} 35. Rc1 {[%emt 0:00:10]} Rec8 {[%emt 0:00:04]} 36. Rcd1 {[%emt 0:00:39]} Rc7 {[%emt 0:00:11]} ({Don't play} 36... Kxe4 37. b4 $14) (36... Rb3 {simplifies} 37. Rf1 Rcb8 38. Rc1 Kxe4 39. Rxc5 Rxb2 40. Rcc2 Rxc2 41. Rxc2 Rb3) 37. b4 {[%emt 0:00:08]} cxb4 {[%emt 0:00:12]} ({But not} 37... Kxe4 38. bxc5 Rd8 39. Re2+ Kf5 40. Red2 $16) 38. Rxd4 {[%emt 0:00:00]} b3 {[%emt 0:00:01]} ({Of course not} 38... bxa3 39. Ke3 $11) 39. Rd5+ {[%emt 0:00:04]} Ke6 {[%emt 0:00:01][%mdl 1024] Black has strong compensation.} (39... Kf6 $5 {[%cal Rb3b2]} 40. Rd6+ Ke7 $11) 40. Rb1 {[%emt 0:00:06]} (40. R5d2 $15) 40... Rc2+ $17 {[%emt 0:00:02]} 41. Ke3 {[%emt 0:00:01]} b2 {[%emt 0:00:02] Black is more active.} ({Black should play} 41... Rxh2 $17 {Threatens to win with ...b2.} 42. a4 Rg2) 42. Rd2 $1 $11 {[%emt 0:00:01]} Rc3+ {[%emt 0:00:07]} 43. Rd3 $2 {[%emt 0:00:07][%mdl 8192]} (43. Kf4 $11) 43... Rc1 {[%emt 0:00:03] What a bad dream for White.   Weighted Error Value: White=0.53/Black=0.38} 0-1

[Event "Romanian Team Blitz Open 2022"]
[Site "Sebes"]
[Date "2022.12.04"]
[Round "8.8"]
[White "Negrean, Andrei"]
[Black "Bulau, Andrei-Cristian"]
[Result "0-1"]
[ECO "D13"]
[WhiteElo "1991"]
[BlackElo "2154"]
[Annotator "TA"]
[PlyCount "151"]
[EventDate "2022.12.04"]
[EventType "blitz"]
[EventCountry "ROU"]
[SourceTitle "playchess.com"]
[Source "ChessBase"]
[SourceQuality "1"]
[TimeControl "180+2"]

{[%evp 19,151,22,44,0,20,31,26,28,76,20,29,27,20,0,0,0,12,0,30,31,32,24,27,32,33,36,32,22,36,32,29,16,21,15,19,16,29,29,30,14,14,14,34,24,29,19,33,30,31,20,12,19,20,8,12,0,0,0,27,0,0,0,0,0,0,0,0,0,0,0,0,0,0,0,0,0,0,0,0,0,0,0,0,-41,-41,-41,-41,-48,-48,-48,-48,-48,-48,-55,-48,-55,-48,-52,-52,-157,-5,-5,0,0,0,-17,-17,-17,-17,-24,-24,-24,-24,-104,-111,-680,-475,-468,-467,-461,-439,-372,-372,-929,-893,-835,-825,-948,-928,-933,-903,-824,-791,-715]} 1. d4 {[%emt 0:00:01]} d5 {[%emt 0:00:01]} 2. c4 {[%emt 0:00:01]} c6 {[%emt 0:00:00]} 3. cxd5 {[%emt 0:00:01]} cxd5 {[%emt 0:00:01]} 4. Bf4 {[%emt 0:00:01]} Nc6 {[%emt 0:00:01]} 5. e3 {[%emt 0:00:01]} Nf6 {[%emt 0:00:01]} 6. Nc3 {[%emt 0:00:01]} a6 {[%emt 0:00:04]} 7. Bd3 {[%emt 0:00:06]} e6 {[%emt 0:00:07]} 8. Rc1 {[%emt 0:00:03]} Be7 {[%emt 0:00:02]} 9. Nf3 {[%emt 0:00:03]} O-O {[%emt 0:00:02]} 10. O-O {[%emt 0:00:03]} Bd7 {[%emt 0:00:06]} 11. Bb1 {[%emt 0:00:13] D13: Slav Defence: Exchange variation without ...Bf5.} Rc8 {[%emt 0:00:18]} 12. Ne5 {[%emt 0:00:13]} Nxe5 {[%emt 0:00:17]} 13. dxe5 {[%emt 0:00:21] White has an edge.} Ne8 {[%emt 0:00:01]} (13... Ne4 $1 $11 {is superior.}) 14. Qd3 {[%emt 0:00:10]} (14. e4 $16) 14... g6 $11 {[%emt 0:00:02] [#]} 15. Bh6 $146 {[%emt 0:00:07]} ({Predecessor:} 15. Rfd1 Bc6 16. e4 Nc7 17. Qg3 Bh4 18. Qf3 Bg5 19. h3 Qe7 20. a3 Kg7 21. Ba2 Bxf4 22. Qxf4 {1-0 (42) Straschewski,J (1942)-Schwarzfischer,J (1669) Nittenau 2005}) 15... Ng7 {[%emt 0:00:00]} 16. Ne2 {[%emt 0:00:09]} Bb5 {[%emt 0:00:05]} 17. Qd2 {[%emt 0:00:03]} Qb6 {[%emt 0:00:09]} 18. Rfe1 {[%emt 0:00:37]} Rfd8 {[%emt 0:00:19]} 19. Nd4 {[%emt 0:00:06]} Bd7 {[%emt 0:00:12]} 20. a3 {[%emt 0:00:02] Against Bb4} Rxc1 {[%emt 0:00:05]} 21. Rxc1 {[%emt 0:00:01]} Rc8 {[%emt 0:00:03]} 22. Rxc8+ {[%emt 0:00:12]} Bxc8 {[%emt 0:00:01]} 23. Qc3 {[%emt 0:00:03]} Qc5 {[%emt 0:00:01]} 24. Qxc5 Bxc5 {[%emt 0:00:01]} 25. Kf1 {[%emt 0:00:21]} Ne8 {[%emt 0:00:02]} 26. Ke2 {[%emt 0:00:06]} Bd7 {[%emt 0:00:04]} 27. Bd3 {[%emt 0:00:02]} Nc7 {[%emt 0:00:04]} 28. Kd2 {[%emt 0:00:07]} Na8 {[%emt 0:00:07]} 29. b4 {[%emt 0:00:07]} Bxd4 {[%emt 0:00:03]} 30. exd4 {[%emt 0:00:01][%mdl 4096] Endgame KBB-KBN} Nc7 {[%emt 0:00:01]} 31. Be3 {[%emt 0:00:14]} Kf8 {[%emt 0:00:01]} 32. Bc2 {[%emt 0:00:02]} Ke8 {[%emt 0:00:05]} 33. a4 {[%emt 0:00:02]} Na8 {[%emt 0:00:02]} 34. Kc3 {[%emt 0:00:10]} Nb6 {[%emt 0:00:06]} 35. a5 {[%emt 0:00:05]} Nc8 {[%emt 0:00:01]} 36. Bd3 {[%emt 0:00:04]} Na7 {[%emt 0:00:02]} 37. g4 {[%emt 0:00:06]} Bb5 {[%emt 0:00:01]} 38. Bc2 {[%emt 0:00:02]} Kd7 {[%emt 0:00:10]} 39. g5 {[%emt 0:00:02]} Bc6 {[%emt 0:00:10]} 40. Bd3 {[%emt 0:00:04]} Ba4 {[%emt 0:00:01]} 41. h4 {[%emt 0:00:02]} Bb5 {[%emt 0:00:07]} 42. Bc2 {[%emt 0:00:01]} Nc6 {[%emt 0:00:03]} 43. Bb3 {[%emt 0:00:03]} Ne7 {[%emt 0:00:02]} 44. Bc2 {[%emt 0:00:01]} Kc7 {[%emt 0:00:01]} 45. Bf4 {[%emt 0:00:03]} Bc4 {[%emt 0:00:03]} 46. Be3 {[%emt 0:00:02]} Nc6 {[%emt 0:00:03]} 47. Ba4 {[%emt 0:00:03]} Bb5 {[%emt 0:00:08]} 48. Bc2 {[%emt 0:00:04]} Nb8 {[%emt 0:00:10]} 49. Bf4 {[%emt 0:00:03]} Nd7 {[%emt 0:00:00]} 50. Be3 {[%emt 0:00:03]} b6 {[%emt 0:00:01]} 51. Bb3 {[%emt 0:00:02]} bxa5 {[%emt 0:00:02]} 52. bxa5 {[%emt 0:00:01]} Nb8 $1 {[%emt 0:00:01]} 53. Kb2 {[%emt 0:00:02]} Nc6 {[%emt 0:00:01]} 54. Kc3 {[%emt 0:00:04]} Nxa5 {[%emt 0:00:01]} 55. Bc2 {[%emt 0:00:00]} Kb6 {[%emt 0:00:03]} 56. Bd2 {[%emt 0:00:02]} Nc6 {[%emt 0:00:02]} 57. Be3 {[%emt 0:00:02]} a5 {[%emt 0:00:00][%cal Ba6a5,Ba5a4][%mdl 32]} 58. f4 {[%emt 0:00:02]} a4 {[%emt 0:00:02] aiming for ...a3.} 59. Bd2 {[%emt 0:00:03] [#]} (59. Kb2 $15) 59... Nb8 $2 {[%emt 0:00:04]} (59... a3 $1 $17 {Threatens to win with ...Ka6.} 60. Bd1 a2) 60. Kb4 {[%emt 0:00:02]} Na6+ {[%emt 0:00:01]} ({Reject} 60... Nc6+ $6 61. Kc3 $17) 61. Ka3 {[%emt 0:00:01]} Nc7 {[%emt 0:00:03]} 62. Bxa4 {[%emt 0:00:01]} Bxa4 63. Kxa4 {[%emt 0:00:01] KB-KN} Nb5 {[%emt 0:00:02]} 64. Be3 {[%emt 0:00:05]} Nc3+ {[%emt 0:00:11]} 65. Kb3 {[%emt 0:00:01]} Ne4 {[%emt 0:00:01]} 66. Kc2 {[%emt 0:00:02]} (66. Ka4 $11) 66... Kb5 {[%emt 0:00:01]} 67. Kd3 $2 {[%emt 0:00:02][%mdl 8192] Now White is beyond hope.} (67. Kb3 $17) 67... Ng3 {[%emt 0:00:02] Strongly threatening ...Ne4.} 68. Bf2 {[%emt 0:00:03]} Nf5 {[%emt 0:00:01] White must now prevent ...Kb4.} 69. Be1 {[%emt 0:00:01]} Ka4 {[%emt 0:00:01]} 70. Kc3 {[%emt 0:00:02]} Ne7 {[%emt 0:00:07]} 71. Kd3 $2 {[%emt 0:00:03] [#]} (71. Bf2 Nf5 72. Bg1) 71... Kb3 $1 $19 {[%emt 0:00:01] Black is clearly winning.} 72. Bf2 {[%emt 0:00:02]} Nc6 {[%emt 0:00:02]} 73. Be1 {[%emt 0:00:01]} Nb4+ {[%emt 0:00:01]} 74. Ke2 {[%emt 0:00:04]} Nc2 {[%emt 0:00:04][%cal Oc2e1] Hoping for ...Nxe1!} 75. Bf2 {[%emt 0:00:02]} Kc4 {[%emt 0:00:01]} 76. Kf3 {[%emt 0:00:05] Weighted Error Value: White=0.11 (very precise) /Black=0.11 (very precise)} 0-1

[Event "Romanian Team Blitz Open 2022"]
[Site "Sebes"]
[Date "2022.12.04"]
[Round "8.9"]
[White "Szabo, Gergely-Andras-Gyula"]
[Black "Anton, Teodor"]
[Result "1-0"]
[ECO "C45"]
[WhiteElo "2514"]
[BlackElo "2438"]
[Annotator "TA"]
[PlyCount "79"]
[EventDate "2022.12.04"]
[EventType "blitz"]
[EventCountry "ROU"]
[SourceTitle "playchess.com"]
[Source "ChessBase"]
[SourceQuality "1"]
[TimeControl "180+2"]

{[%evp 14,79,35,27,25,34,35,6,20,7,14,0,11,0,9,3,9,17,2,0,44,1,2,0,0,0,0,8,5,-14,-10,-56,-54,-73,85,81,88,100,148,103,429,82,264,0,0,0,444,436,419,427,375,258,219,100,118,64,87,61,149,149,737,145,823,823,4666,4132,4132,4132]} 1. e4 {[%emt 0:00:02]} e5 {[%emt 0:00:02]} 2. Nf3 {[%emt 0:00:01]} Nc6 {[%emt 0:00:01]} 3. d4 {[%emt 0:00:01]} exd4 4. Nxd4 {[%emt 0:00:01]} Bc5 {[%emt 0:00:04]} 5. Nb3 {[%emt 0:00:03]} Bb6 {[%emt 0:00:01]} 6. Nc3 {[%emt 0:00:01]} Qf6 {[%emt 0:00:01]} 7. Qe2 {[%emt 0:00:08]} Nge7 {[%emt 0:00:03]} 8. Be3 {[%emt 0:00:05]} d6 {[%emt 0:00:01] is now debated instead of 8...0-0. C45: Scotch Game.} 9. O-O-O {[%emt 0:00:09]} Bd7 {[%emt 0:00:02]} 10. g3 {[%emt 0:00:17]} O-O-O {[%emt 0:00:04] The position is equal.} 11. Bxb6 {[%emt 0:00:07]} axb6 {[%emt 0:00:02] [#]} 12. f4 $146 {[%emt 0:00:01]} ({Predecessor:} 12. Qe3 Rhe8 13. Bg2 Kb8 14. f4 Qh6 15. Kb1 f5 16. Qd2 fxe4 17. Bxe4 Bf5 18. Bf3 {½-½ (45) Sutton,A (2220)-Carter,M (2071) ICCF email 2018}) 12... h5 {[%emt 0:00:07]} 13. Bg2 {[%emt 0:00:07]} Bg4 {[%emt 0:00:25]} 14. Bf3 {[%emt 0:00:01]} Bxf3 {[%emt 0:00:05]} 15. Qxf3 {[%emt 0:00:01]} g5 {[%emt 0:00:06]} 16. Rhf1 {[%emt 0:00:14]} h4 {[%emt 0:00:16]} 17. Qg4+ {[%emt 0:00:15]} Qe6 {[%emt 0:00:29]} 18. Qxg5 {[%emt 0:00:03]} hxg3 {[%emt 0:00:07]} 19. hxg3 {[%emt 0:00:13]} Rdg8 {[%emt 0:00:07]} 20. Qb5 {[%emt 0:00:02]} Rxg3 {[%emt 0:00:04]} 21. Rde1 {[%emt 0:00:14]} (21. Kb1 {simplifies} Kb8 22. Nd4 Nxd4 23. Rxd4 f5 24. Re1) 21... Rg2 {[%emt 0:00:12]} 22. Nd5 {[%emt 0:00:13]} (22. Kb1 $11 {is superior.}) 22... Rhh2 $15 {[%emt 0:00:18]} 23. Nd4 {[%emt 0:00:11] [#]} Rxc2+ $2 {[%emt 0:00:02]} 24. Nxc2 $16 {[%emt 0:00:01]} Rxc2+ {[%emt 0:00:02][%mdl 64]} 25. Kb1 $1 {[%emt 0:00:01] Black must now prevent f5.} Rh2 {[%emt 0:00:27]} (25... Rc5 $142 26. Nxe7+ Kd7) 26. Rg1 {[%emt 0:00:04]} Nxd5 $4 {[%emt 0:00:17][%mdl 8192]} (26... Rh8 $16 27. Qc4 Kb8) 27. Qxd5 $2 {[%emt 0:00:05]} (27. exd5 $18 {and the rest is easy.} Qf6 28. dxc6 bxc6 29. Qa6+ Kd7 30. Qa3) 27... Qf6 {[%emt 0:00:04] [#]} (27... Kd7 $16) 28. Qf5+ $2 {[%emt 0:00:09]} (28. Rg8+ $1 $18 Kd7 29. e5 Qf5+ 30. Ka1) 28... Qxf5 $11 {[%emt 0:00:02]} 29. exf5 {[%emt 0:00:01][%mdl 4096] Endgame KRR-KRN} Nd4 $2 {[%emt 0:00:04][%mdl 8192]} (29... Rh6 $11 {and Black is okay.}) 30. Re7 $18 {[%emt 0:00:03][%cal Rg1g8]} Kb8 {[%emt 0:00:03]} 31. Rxf7 {[%emt 0:00:05] aiming for f6.} Rf2 {[%emt 0:00:03]} 32. f6 {[%emt 0:00:08]} Rxf4 {[%emt 0:00:02]} 33. Rf8+ {[%emt 0:00:13]} (33. b3 $18) 33... Ka7 $16 {[%emt 0:00:01]} 34. f7 {[%emt 0:00:00]} (34. a4 $16 {Hoping for Rgg8.} b5 35. axb5) 34... b5 $1 $14 {[%emt 0:00:03]} 35. a3 {[%emt 0:00:02]} c5 {[%emt 0:00:04]} ({Better is} 35... Kb6 $14) 36. Rgg8 $16 {[%emt 0:00:07]} Rf1+ {[%emt 0:00:06]} 37. Ka2 {[%emt 0:00:01] Threatens to win with Ra8+.} b4 $2 {[%emt 0:00:03][%mdl 8192]} (37... Kb6 $16) 38. axb4 $18 {[%emt 0:00:02] White is clearly winning.} ({Weaker is} 38. Ra8+ Kb6 39. axb4 (39. f8=R $2 b3#) 39... Rxf7 $16) 38... cxb4 {[%emt 0:00:06]} 39. Ra8+ {[%emt 0:00:08]} Kb6 {[%emt 0:00:01]} 40. f8=Q {[%emt 0:00:02] Weighted Error Value: White=0.52/Black=0.61} 1-0